Cogmind - Beta 10.1 @@@ ROGUE MODE // 2020.09.23 @ 14:32:58 Player: Finestep Result: Destroyed by D-53 Grenadier with Mini Grenade Launcher Performance ------------- Evolutions (0) 0 Regions Visited (4) 800 Robots Destroyed (36) 180 Value Destroyed (884) 884 Prototype IDs (0) 0 Alien Tech Used (0) 0 Bonus (0) 0 TOTAL SCORE: 1864 Bonus ------- None Cogmind --------- Core Integrity 0/250 Matter 254/300 Energy 265/265 System Corruption 0% Temperature Cool (0) Movement Walking (330) Ox7 Location -9/Mines Parts ------- > --- POWER (1) -------- Improved Ion Engine > --- PROPULSION (2) --- Aluminum Leg > --- UTILITY (2) ------ High-capacity Storage Unit High-capacity Storage Unit > --- WEAPON (2) ------- Assault Rifle Assault Rifle > --- INVENTORY (20) --- Light Fission Core Wheel Improved Heat Sink Large Storage Unit High-capacity Storage Unit High-capacity Storage Unit High-capacity Battery (400) Assault Rifle Assault Rifle Assault Rifle Assault Rifle Light Assault Rifle Grenade Launcher Rocket Launcher Mining Laser Shock Trap Peak State ------------ > --- POWER ------------ Light Nuclear Core > --- PROPULSION ------- Aluminum Leg Aluminum Leg > --- UTILITY ---------- High-capacity Storage Unit High-capacity Storage Unit > --- WEAPON ----------- Assault Rifle Assault Rifle > --- INVENTORY -------- Improved Ion Engine Light Fission Core Aluminum Leg Wheel Wheel Improved Heat Sink Large Storage Unit High-capacity Storage Unit High-capacity Storage Unit High-capacity Battery Assault Rifle Assault Rifle Assault Rifle Assault Rifle Assault Rifle Assault Rifle Light Assault Rifle Grenade Launcher Mining Laser [Rating: 11] Favorites ----------- Power Improved Ion Engine Engine Improved Ion Engine Power Core Light Nuclear Core Propulsion Aluminum Leg Treads Light Treads Leg Aluminum Leg Wheel Wheel Utility High-capacity Storage Unit Storage High-capacity Storage Unit Weapon Assault Rifle Energy Gun Medium Laser Ballistic Gun Assault Rifle Build | -11 -10 -10 -10 -9 ------- Run | Scr Mat Min Exi Min Slots Evolved . | . . . . . Power . | . . . . . Propulsion . | . . . . . Utility . | . . . . . Weapon . | . . . . . Parts Attached 28 | 7 13 2 . 6 Power 5 | 1 2 . . 2 Engine 4 | 1 2 . . 1 Core 1 | . . . . 1 Reactor . | . . . . . Propulsion 8 | 2 3 1 . 2 Treads 2 | 2 . . . . Leg 5 | . 2 1 . 2 Wheel 1 | . 1 . . . Hover . | . . . . . Flight . | . . . . . Utility 6 | 2 4 . . . Device . | . . . . . Storage 6 | 2 4 . . . Processor . | . . . . . Hackware . | . . . . . Protection . | . . . . . Artifact . | . . . . . Weapon 9 | 2 4 1 . 2 Energy Gun 2 | 1 1 . . . Energy Cannon . | . . . . . Ballistic Gun 7 | 1 3 1 . 2 Ballistic Cannon . | . . . . . Launcher . | . . . . . Special Weapon . | . . . . . Impact Weapon . | . . . . . Slashing Weapon . | . . . . . Piercing Weapon . | . . . . . Special Melee Weapon . | . . . . . Unidentified Prototypes . | . . . . . Parts Lost 16 | . 7 2 . 7 Power 4 | . 2 . . 2 Propulsion 7 | . 3 1 . 3 Utility . | . . . . . Weapon 5 | . 2 1 . 2 Highest Loss Streak 4 | . 2 2 . 4 Average Slot Usage (%) 96 | . 97 91 100 97 Engine 13 | . 13 14 14 10 Treads 5 | . 12 . . . Leg 19 | . 12 20 28 26 Storage 28 | . 28 28 28 28 Energy Gun 3 | . 8 . . . Ballistic Gun 24 | . 19 27 28 28 Naked Turns . | . . . . . Heaviest Build 75 | 14 74 75 75 75 Greatest Support 40 | 40 40 20 20 20 Greatest Overweight (x) 7 | . 3 7 3 6 Average Overweight (x) 2 | . 1 4 3 3 Largest Inventory Capacity 20 | 8 20 20 20 20 Average Capacity 17 | 6 16 20 20 20 Most Carried 20 | 4 19 20 20 20 Average Carried 15 | 1 14 19 19 19 Final Capacity 20 | 8 20 20 20 20 Final Carried 20 | 4 17 19 20 16 Class Distribution -------------------- 54% | Hauler-Mutant 45% | Mutant Dominant Class ---------------- Mutant | -10/Materials Hauler-Mutant | -10/Mines Hauler-Mutant | -10/Exiles Hauler-Mutant | -9/Mines Resources | -11 -10 -10 -10 -9 ----------- Run | Scr Mat Min Exi Min Matter Collected 692 | 284 262 72 . 74 Remotely . | . . . . . Salvage Created 1424 | 101 982 221 . 120 Parts 93 | 10 59 16 . 8 Haulers Intercepted 2 | . 2 . . . Recyclers Shooed 2 | . 1 1 . . Parts Field Recycled . | . . . . . Retrieved Matter . | . . . . . Parts Self-Destructed . | . . . . . Prevented . | . . . . . Kills | -11 -10 -10 -10 -9 ------- Run | Scr Mat Min Exi Min Combat Hostiles Destroyed 22 | . 15 4 . 3 Guns 22 | . 15 4 . 3 Classes Destroyed 8 | 2 5 . . 1 Worker 3 | . 1 1 . 1 Tunneler 3 | 2 . 1 . . Hauler 2 | . 2 . . . Recycler 4 | 1 3 . . . Watcher 2 | . 2 . . . Swarmer 3 | . 3 . . . Grunt 18 | . 12 4 . 2 Demolisher 1 | . . . . 1 Best Kill Streak 8 | 1 8 4 . 1 Combat Bots Only 6 | . 6 4 . 1 Max Kills in Single Turn 1 | 1 1 1 . 1 Gunslinging . | . . . . . Exploded . | . . . . . Melee . | . . . . . Uniques/NPCs Destroyed . | . . . . . Combat | -11 -10 -10 -10 -9 -------- Run | Scr Mat Min Exi Min Damage Taken 1930 | . 970 173 . 787 Core 273 | . 157 40 . 76 Absorbed by Shields . | . . . . . Core Remaining (%) 100 | 100 . . . . Volleys Fired 127 | 14 83 15 . 15 Largest 2 | 2 2 2 . 2 Hottest 70 | 70 70 40 . 40 Shots Fired 246 | 23 165 28 . 30 Gun 246 | 23 165 28 . 30 Cannon . | . . . . . Launcher . | . . . . . Special . | . . . . . Kinetic 189 | 14 117 28 . 30 Thermal 57 | 9 48 . . . Explosive . | . . . . . Electromagnetic . | . . . . . Robot Hit Streak 19 | 5 19 14 . 8 Robot Miss Streak 4 | 4 4 2 . 3 Penetration Max . | . . . . . Secondary Targets 3 | . 1 1 . 1 Max Gunslinging Chain 1 | . 1 1 . 1 Shots Hit Robots 174 | 12 122 22 . 18 Core Hits 78 | 6 50 12 . 10 Critical Hits 4 | 1 3 . . . Critical Kills 1 | . 1 . . . Critical Parts Destroyed 3 | 1 2 . . . Melee Attacks . | . . . . . Impact . | . . . . . Slashing . | . . . . . Piercing . | . . . . . Sneak Attacks . | . . . . . Combat Hostiles . | . . . . . Follow-up Attacks . | . . . . . Damage Inflicted 2020 | 154 1402 257 . 207 Guns 1824 | 154 1206 257 . 207 Cannons . | . . . . . Explosions 196 | . 196 . . . Melee . | . . . . . Ramming . | . . . . . Kinetic 1384 | 106 814 257 . 207 Thermal 636 | 48 588 . . . Explosive . | . . . . . Electromagnetic . | . . . . . Impact . | . . . . . Slashing . | . . . . . Piercing . | . . . . . Highest Corruption . | . . . . . Average Corruption . | . . . . . Corruption Purged . | . . . . . Overload Shots . | . . . . . Overflow Damage 42 | . 42 . . . Projectiles . | . . . . . Explosions 42 | . 42 . . . Melee . | . . . . . Knockbacks . | . . . . . Impact . | . . . . . Kinetic . | . . . . . Secondary . | . . . . . Self-Inflicted Damage 96 | . 96 . . . Shots 1 | . 1 . . . Rammed . | . . . . . Targets Rammed . | . . . . . Kicked . | . . . . . Crushed . | . . . . . Highest Temperature 239 | 90 239 17 . 4 Average Temperature 45 | 33 53 5 . 3 Received Heat Transfer 630 | . 447 99 . 84 Siege Activations . | . . . . . Robots Corrupted . | . . . . . Combat Hostiles . | . . . . . Parts Fried . | . . . . . Impact Corruptions . | . . . . . Robots Melted . | . . . . . Combat Hostiles . | . . . . . Parts Melted 2 | . 2 . . . Heat Transferred 1395 | 148 1247 . . . Parts Sabotaged . | . . . . . Parts Stolen . | . . . . . Parts Stripped . | . . . . . Power Chain Reactions . | . . . . . Missiles Intercepted . | . . . . . Alert | -11 -10 -10 -10 -9 ------- Run | Scr Mat Min Exi Min Peak Influence 214 | 15 214 103 . 35 Initial 13 | . 9 13 . . Average 53 | 4 72 53 . 22 Maximum Alert Level 1 | . 1 . . . Low Security (%) 98 | 100 97 100 . 100 Level 1 1 | . 2 . . . Level 2 . | . . . . . Level 3 . | . . . . . Level 4 . | . . . . . Level 5 . | . . . . . High Security . | . . . . . Max Security . | . . . . . Squads Dispatched 4 | . 4 . . . Investigation 3 | . 3 . . . Extermination . | . . . . . Reinforcement 1 | . 1 . . . Assault . | . . . . . Garrison . | . . . . . Intercept . | . . . . . Construction Impeded . | . . . . . Haulers Reinforced . | . . . . . Stealth | -11 -10 -10 -10 -9 --------- Run | Scr Mat Min Exi Min Distress Signals . | . . . . . Communications Jammed . | . . . . . Distress Signals . | . . . . . Times Spotted 35 | . 26 4 . 5 Peak Tracking Total 5 | . 5 4 . 2 Tactical Retreats 3 | . 2 . . 1 Traps | -11 -10 -10 -10 -9 ------- Run | Scr Mat Min Exi Min Traps Triggered 2 | . 2 . . . Indirectly . | . . . . . Trap Hack Attempts . | . . . . . Triggered . | . . . . . Disarmed . | . . . . . Reprogrammed . | . . . . . Reused . | . . . . . Traps Extracted . | . . . . . Installed 1 | . . . . 1 Triggered . | . . . . . Machines | -11 -10 -10 -10 -9 ---------- Run | Scr Mat Min Exi Min Machines Disabled 4 | . 4 . . . Max in Single Turn 4 | . 4 . . . Machines Sabotaged . | . . . . . Garrisons Compromised . | . . . . . Overloaded Fab Kills . | . . . . . Fab Network Shutdowns . | . . . . . Hacking | -11 -10 -10 -10 -9 --------- Run | Scr Mat Min Exi Min Machines Accessed 6 | . 5 . 1 . Terminals 4 | . 4 . . . Fabricators . | . . . . . Repair Stations . | . . . . . Recycling Units 1 | . 1 . . . Scanalyzers . | . . . . . Garrison Access . | . . . . . Total Hacks 15 | . 11 . 4 . Successful 9 | . 5 . 4 . Failed 6 | . 6 . . . Catastrophic 1 | . 1 . . . Database Lockouts . | . . . . . Manual 4 | . 4 . . . Terminals 9 | . 9 . . . Fabricators . | . . . . . Repair Stations . | . . . . . Recycling Units 2 | . 2 . . . Scanalyzers . | . . . . . Garrison Access . | . . . . . Terminal Hacks 7 | . 3 . 4 . Record 4 | . . . 4 . Robot Analysis 1 | . 1 . . . Hauler Manifests 1 | . 1 . . . Registered Components 1 | . 1 . . . Fabricator Hacks . | . . . . . Repair Station Hacks . | . . . . . Recycling Unit Hacks 1 | . 1 . . . Retrieve Components 1 | . 1 . . . Scanalyzer . | . . . . . Garrison Access Hacks . | . . . . . Unauthorized Hacks 1 | . 1 . . . Terminals . | . . . . . Fabricators . | . . . . . Repair Stations . | . . . . . Recycling Units 1 | . 1 . . . Tunnel 1 | . 1 . . . Scanalyzers . | . . . . . Garrison Access . | . . . . . Data Cores Recovered . | . . . . . Used . | . . . . . Hacking Detections 4 | . 4 . . . Full Trace Events . | . . . . . Feedback Events . | . . . . . Feedback Blocked . | . . . . . Robot Schematics Acquired . | . . . . . Robots Built . | . . . . . Matter . | . . . . . Time . | . . . . . Total Robot Build Rating . | . . . . . Part Schematics Acquired . | . . . . . Parts Built . | . . . . . Matter . | . . . . . Time . | . . . . . Total Part Build Rating . | . . . . . Parts Repaired . | . . . . . Time . | . . . . . Parts Recycled . | . . . . . Recycled Matter . | . . . . . Retrieved Matter . | . . . . . Retrieved Components 3 | . 3 . . . Parts Scanalyzed . | . . . . . Part Schematics Acquired . | . . . . . Parts Damaged . | . . . . . Bothacking | -11 -10 -10 -10 -9 ------------ Run | Scr Mat Min Exi Min Used RIF Installer . | . . . . . Robots Hacked . | . . . . . Non-combat . | . . . . . Combat . | . . . . . Robot Hacks Applied . | . . . . . Relay Couplers Released . | . . . . . Robots Rewired . | . . . . . Allies Hacked . | . . . . . Hacks Repelled . | . . . . . Allies | -11 -10 -10 -10 -9 -------- Run | Scr Mat Min Exi Min Total Allies . | . . . . . Largest Group . | . . . . . Highest-Rated Group . | . . . . . Highest-Rated Ally . | . . . . . Total Orders . | . . . . . Ally Attacks . | . . . . . Total Damage . | . . . . . Kills . | . . . . . Allies Corrupted . | . . . . . Allies Melted . | . . . . . Intel | -11 -10 -10 -10 -9 ------- Run | Scr Mat Min Exi Min Robot Analysis Total 1 | . 1 . . . Derelict Logs Recovered 1 | . . 1 . . Drone Launches . | . . . . . Drone Recoveries . | . . . . . Exploration | -11 -10 -10 -10 -9 ------------- Run | Scr Mat Min Exi Min Turns Passed 2991 | 254 1267 572 511 387 Spaces Moved 1255 | 132 521 203 243 156 Core 4 | 4 . . . . Treads 474 | 128 346 . . . Legs 777 | . 175 203 243 156 Wheels . | . . . . . Hover . | . . . . . Flight . | . . . . . Fastest Speed 50 | 50 150 210 210 210 Average Speed 200 | 156 179 259 210 212 Slowest Speed 330 | 160 210 330 210 300 Overloaded Moves . | . . . . . Propulsion Burnouts . | . . . . . Robots Hopped . | . . . . . Cave-ins Triggered . | . . . . . Exploration Rate (%) 45 | 10 84 28 61 42 Regions Visited 4 Branch Regions 3 Pre-discovered Areas 3 | . 1 1 1 . Known Exits Taken . | . . . . . Unknown Exits Taken 4 | 1 1 1 1 . Scrap Searched 1 | . . . . 1 Spaces Dug . | . . . . . Terrain Destroyed 37 | . 37 . . . Melee . | . . . . . Projectile . | . . . . . AOE 37 | . 37 . . . Terrain Rammed . | . . . . . Walls Destroyed . | . . . . . Machines Disabled . | . . . . . Actions | -11 -10 -10 -10 -9 --------- Run | Scr Mat Min Exi Min Total 1517 | 156 710 223 245 183 Wait 57 | . 57 . . . Move 1251 | 131 520 202 242 156 Hop . | . . . . . Pick Up 38 | 4 25 4 2 3 Fast Attach 11 | 7 3 . . 1 Attach 12 | . 5 2 . 5 Detach . | . . . . . Swap 5 | . 5 . . . Drop 15 | . 12 . 1 2 Fire 127 | 14 83 15 . 15 Melee . | . . . . . Ram . | . . . . . Kick . | . . . . . Crush . | . . . . . Escape Stasis . | . . . . . Rewire . | . . . . . Trap 1 | . . . . 1 Miscellaneous . | . . . . . Route ------- -11/Scrapyard -10/Materials (discovered 4 exits: [*Mat x2] / [*Min x2]) -10/Mines -10/Exiles -9/Mines History --------- Turn | Location | Event 7 | -11/Scrapyard | Discovered new exit (range 16) 255 | -11/Scrapyard | Entered Materials 313 | -10/Materials | Build established: Mutant 471 | -10/Materials | Discovered new exit (range 5) 784 | -10/Materials | Discovered new exit (range 5) 1045 | -10/Materials | Discovered new exit (range 6) 1086 | -10/Materials | Core integrity fell below 50% 1139 | -10/Materials | Discovered new exit (range 16) 1522 | -10/Materials | Entered Mines 1673 | -10/Mines | Build established: Hauler-Mutant 2086 | -10/Mines | Deemed a non-threat by the Exiles lab entrance 2086 | -10/Mines | Discovered new exit (range 5) 2094 | -10/Mines | Entered Exiles 2148 | -10/Exiles | Met 8R-AWN 2184 | -10/Exiles | Met EX-HEX 2240 | -10/Exiles | Met EX-BIN 2278 | -10/Exiles | Learned location of Zion (-7) 2399 | -10/Exiles | Met EX-DEC 2588 | -10/Exiles | Discovered new exit (range 10) 2605 | -10/Exiles | Entered Mines 2723 | -9/Mines | Received a Rocket Launcher from a helpful Derelict 2794 | -9/Mines | Found a hidden stash of uninstalled traps 2947 | -9/Mines | Assembled infested the area 2984 | -9/Mines | Core integrity fell below 20% 2992 | -9/Mines | Destroyed by D-53 Grenadier with Mini Grenade Launcher Last Messages --------------- 02902_ Acquired 26 matter. 02904_ Extracted 2 matter. 02947_ ALERT: Infestation in the mines, dispatching Demolisher response squad. 02969_ Dropped Shock Trap. 02970_ C-30 ARC bursts open, deploying its payload. 02970_ D-53 Grenadier unfolds itself. 02970_ Installed Shock Trap. 02971_ K-01 Serf collects debris. 02977_ The unstable cave ceiling collapses. 02977_ Assault Rifle destroyed. 02978_ The unstable cave ceiling collapses. 02979_ Aluminum Leg destroyed. 02979_ K-01 Serf destroyed. 02983_ The unstable cave ceiling collapses. 02985_ Aluminum Leg destroyed. 02985_ Assault Rifle destroyed. 02991_ The unstable cave ceiling collapses. 02991_ D-53 Grenadier destroyed. 02991_ Switching to secondary target: D-53 Grenadier. Map ----- +----------------------------------------------------+ | ???????#####??????# #? #?????????????????????????? | | ??????## ####### ## #?????????????????????????? | | ?????## #?????????????????????????? | | ????## #?????????????????????????? | | ????# #### # #??????????????????????? | | ??### """ #### ######??????????????????????? | | ? """ ## #?????????????????????????? | | ??? """ #?????????????????????????? | | ???????# ##?????????????????????????? | | ????????# ##??????????????????????????? | | ????????## ##????####???????????????????? | | ?????????## #???### #??????????????????? | | ??????????## ##??## ??????????????????? | | ???????????#### ####???# ??????????????????? | | ??????????????# #??????? ??????????????????? | | ??????????????# #???????# ??????????????????? | | ??????????????# #????????# #######???????????? | | ???????######## #####?????# ##??????????? | | ?# #??????# """ #?? #??????? | | ???????############ #???????# """ ## #??????? | | ??????????????????# #?######## """ #??????? | | ??????????????????#=### ### ?????????? | | ??????????????????#=## # ## #????????????? | | ??????????????????# # ##????????????? | | ??????????????????# # ###?????????????? | | ??????????????????# % d @ ##???????????????? | | ??????????????????### ###????????????????? | | ????????????????????# #??????????????????? | | ????????????????????## ##??????????????????? | | ?????????????????????## ##???????????????????? | | ??????????????????????#######????????????????????? | | ?????????????????????????????????????????????????? | | | | | | | | | | | | | | | | | | | | | | | | | | | | | | | | | | | | | +----------------------------------------------------+ Best States ------------- Heat Dissipation 25 Energy Generation 14 Energy Capacity 265 Matter Stores 300 Matter Capacity 300 Sight Range 16 Terrain Scan Density 10 Evasion (%) 40 Recoil Reduction 2 Item Schematics ----------------- None Robot Schematics ------------------ None Fabricated ------------ Nothing Alien Tech Used ----------------- None Achievements -------------- None Challenges ------------ None Game ------ Seed ContainmentDeliveryFlakker Manual? 0 Play Time 00:14:29 Cumulative 512.2 hours Start 2020.09.23 @ 14:17:37 End 2020.09.23 @ 14:32:58 Sessions 1 Manual Loads 0 Difficulty Rogue Special Mode None Game No. 329 Rogue 329 Adventurer 0 Explorer 0 Win Type - Total 6 Types 4/0/1/0/1/0/0/0/0 Lore% 88 Gallery% 88 Achievement% 69 Wizard Run 0 Options --------- ASCII 0 Keyboard 0 Movement Mouse Keybinds 1 Fullscreen 2 Font 24/Smallcaps Map View 68x50 Tactical HUD 1 Map Filters NONE Filters NONE Steam 1 RUN: 5200e159-3c67-49f5-8362-d891e8892d75